bitfinex-derivatives/quotes_ETHF0:USTF0_20210705
["timestamp","ask_amount","ask_price","bid_price","bid_amount"]
[1625480397121,1.0,2290.4,2289.4,61.642346]
[1625480397773,1.28741681,2290.7,2289.4,61.642346]
[1625480398073,2.28741681,2290.7,2289.4,61.642346]
[1625480398174,2.28741681,2290.7,2290.6,38.255]
[1625480398273,1.28741681,2290.7,2290.6,41.1563]
[1625480398473,1.28741681,2290.7,2290.6,2.9013]
[1625480398679,1.28718689,2291.2,2290.6,2.9013]
[1625480398973,4.41054,2290.7,2290.6,5.10657]
[1625480399075,54.71694,2290.7,2290.6,5.10657]
[1625480399175,55.71694,2290.7,2290.6,5.10657]
[1625480399278,5.41054,2290.7,2290.6,5.10657]
[1625480400336,5.41054,2290.7,2290.6,2.20527]
[1625480400988,54.47414,2290.7,2290.6,2.20527]
[1625480401340,54.47414,2290.7,2290.3,2.20527]
[1625480401438,54.47414,2290.7,2287.4,5.0]
[1625480401542,54.47414,2290.7,2288.9,15.70922783]
[1625480401989,55.76080863,2290.7,2288.9,14.47]
[1625480402091,49.3493,2289.7,2289.0,15.737373]
[1625480402189,4.4583,2289.6,2289.0,15.737373]
[1625480403051,2.20527,2289.2,2289.1,2.20527]
[1625480403508,3.20527,2289.2,2289.1,2.20527]
[1625480403959,2.20527,2289.2,2289.1,2.20527]
[1625480404460,3.20527,2289.2,2289.1,2.20527]
[1625480405063,5.41054,2289.2,2289.1,2.20527]
[1625480405965,5.41054,2289.2,2289.1,44.31737]
[1625480409874,5.41054,2289.2,2289.1,2.20527]
[1625480411525,4.41054,2289.2,2289.1,2.20527]
[1625480413480,5.41054,2289.2,2289.1,2.20527]
[1625480420465,3.20527,2289.2,2289.1,2.20527]
[1625480423525,2.20527,2289.2,2289.1,2.20527]
[1625480423627,2.20527,2289.2,2289.1,43.84567]
[1625480423924,2.20527,2289.2,2289.1,59.722363]
[1625480425176,2.20527,2289.5,2289.1,59.722363]
[1625480427180,2.20527,2289.5,2289.4,2.20527]
[1625480427531,2.20527,2289.5,2289.4,18.034765]
[1625480430837,2.20527,2289.5,2289.4,2.20527]
[1625480431692,3.20527,2289.7,2289.4,2.20527]
[1625480433195,5.41054,2289.7,2289.1,43.84567]
[1625480433848,5.41054,2289.7,2289.2,18.418708]
[1625480435198,5.41054,2289.7,2289.6,2.20527]
[1625480435398,5.41054,2289.7,2289.2,18.418708]
[1625480435498,5.41054,2289.7,2289.2,15.934508]
[1625480435599,5.41054,2289.7,2289.1,2.20527]
[1625480437256,4.41054,2289.2,2289.1,2.20527]
[1625480437963,2.20527,2289.2,2289.1,2.20527]
[1625480441966,2.20527,2289.2,2288.9,53.86167]
[1625480443270,2.20527,2289.2,2289.1,2.20527]
[1625480443370,2.20527,2289.2,2289.1,4.60597]
[1625480444628,2.20527,2289.2,2289.1,20.529113]
[1625480447551,2.20527,2289.4,2289.1,20.529113]
[1625480448358,1.0,2290.0,2289.1,21.77474356]
[1625480448659,1.0,2290.0,2289.2,1.24592241]
[1625480449017,1.0,2290.0,2289.3,15.809294]
[1625480449317,2.20527,2289.9,2289.8,2.20527]
[1625480449415,2.20527,2289.9,2289.8,4.77917]
[1625480451223,2.20527,2289.9,2289.8,2.20527]
[1625480456237,2.20527,2289.9,2289.8,5.05397]
[1625480456787,2.20527,2289.9,2289.8,20.959741]
[1625480462314,2.20527,2290.2,2289.8,20.959741]
[1625480462419,46.2298,2290.7,2289.8,20.959741]
[1625480462519,1.2901831,2290.8,2289.9,1.0]
[1625480462919,1.28916636,2291.4,2290.1,1.2434644]
[1625480463021,1.28916636,2291.4,2290.2,1.0]
[1625480463119,1.28916636,2291.4,2291.3,54.5196]
[1625480463220,1.28916636,2291.4,2291.3,58.5548]
[1625480463419,1.28916636,2291.4,2291.3,62.96534]
[1625480463519,1.28916636,2291.4,2291.3,78.789512]
[1625480463821,3.49410067,2292.0,2291.3,78.789512]
[1625480464223,3.49410067,2292.0,2291.3,24.269912]
[1625480464322,2.20527,2292.0,2291.3,24.269912]
[1625480467431,2.20527,2292.0,2291.9,5.10397]
[1625480469339,2.20527,2292.0,2291.9,6.10397]
[1625480471791,43.6911,2292.5,2291.9,6.10397]
[1625480471792,43.6911,2292.5,2291.9,21.823832]
[1625480473196,1.28300208,2293.2,2291.9,21.823832]
[1625480473447,2.20527,2292.8,2292.6,2.20527]
[1625480475503,4.41054,2292.8,2292.6,2.20527]
[1625480475701,7.18304,2292.8,2291.9,1.0]
[1625480475816,7.18304,2292.8,2291.2,1.0]
[1625480476304,50.1117,2292.2,2291.2,1.0]
[1625480476403,50.1117,2292.2,2291.3,15.827136]
[1625480476500,53.1186,2292.2,2291.4,1.0]
[1625480476908,53.1186,2292.2,2291.5,15.888733]
[1625480477004,53.1186,2292.2,2291.5,16.888733]
[1625480477408,53.1186,2292.2,2291.5,1.0]
[1625480477505,2.20527,2292.0,2291.8,2.20527]
[1625480478178,2.20527,2292.0,2291.9,0.19]
[1625480489048,44.1091,2292.5,2291.9,0.19]
[1625480489548,44.1091,2292.5,2292.4,4.41054]
[1625480491052,44.1091,2292.5,2291.9,1.19]
[1625480491604,2.20527,2292.4,2292.2,2.20527]
[1625480491807,2.20527,2292.4,2292.2,5.53697]
[1625480492608,5.71467,2292.4,2292.2,5.53697]
[1625480493058,5.71467,2292.4,2292.2,2.20527]
[1625480493569,7.91994,2292.4,2292.2,2.20527]
[1625480495275,3.5094,2292.4,2292.2,2.20527]
[1625480495375,0.8738,2293.1,2292.2,2.20527]
[1625480495475,5.0,2293.7,2292.2,2.20527]
[1625480495576,2.20527,2293.0,2292.9,2.20527]
[1625480497633,4.41054,2293.0,2292.9,2.20527]
[1625480504000,4.41054,2293.0,2292.7,2.20527]
[1625480504100,7.30334,2293.0,2292.4,1.0]
[1625480504656,48.5094,2292.5,2292.4,1.0]
[1625480505609,50.71467,2292.5,2292.4,3.20527]
[1625480508127,50.71467,2292.5,2292.3,2.20527]
[1625480508229,51.58787,2292.5,2292.3,2.20527]
[1625480508729,50.71467,2292.5,2292.3,2.20527]
[1625480509635,52.91994,2292.5,2292.0,2.20527]
[1625480511094,53.78384,2292.5,2292.0,2.20527]
[1625480511690,2.20527,2292.1,2292.0,2.20527]
[1625480511788,4.58757,2292.1,2292.0,2.20527]
[1625480519457,2.20527,2292.1,2292.0,2.20527]
[1625480523228,51.57857,2292.5,2292.0,2.20527]
[1625480523829,51.57857,2292.5,2292.0,3.20527]
[1625480525835,2.20527,2292.1,2292.0,3.20527]
[1625480526034,2.20527,2292.1,2292.0,2.20527]
[1625480534004,2.20527,2292.1,2292.0,3.20527]
[1625480538432,2.20527,2292.1,2292.0,2.20527]
[1625480546094,2.20527,2292.1,2292.0,3.20527]
[1625480547300,2.20527,2292.5,2292.0,3.20527]
[1625480547957,2.20527,2292.5,2292.4,2.20527]
[1625480548054,2.20527,2292.5,2292.4,6.38207]
[1625480550460,2.20527,2292.5,2292.4,5.38207]
[1625480554271,2.20527,2292.5,2292.4,2.20527]
[1625480554927,4.34807,2292.5,2292.4,2.20527]
[1625480555022,4.34807,2292.5,2292.0,3.20527]
[1625480555947,2.20527,2292.1,2292.0,3.20527]
[1625480557948,1.20527,2292.1,2292.0,2.20527]
[1625480559554,3.20527,2292.5,2292.0,2.20527]
[1625480559555,2.20527,2292.5,2292.0,2.20527]
[1625480559654,2.20527,2292.5,2292.0,5.42117]
[1625480559758,6.67958206,2292.8,2292.0,5.42117]
[1625480559968,8.88485206,2292.8,2292.7,2.20527]
[1625480560059,3.20527,2292.8,2292.7,2.20527]
[1625480560657,4.49806107,2292.8,2292.7,2.20527]
[1625480561611,3.20527,2292.8,2292.7,2.20527]
[1625480564675,2.20527,2292.8,2292.7,2.20527]
[1625480564876,2.20527,2292.8,2292.7,18.086021]
[1625480565536,5.67898433,2293.3,2292.7,18.086021]
[1625480565637,10.0,2538.0,2292.7,18.086021]
[1625480565638,5.67631501,2293.5,2292.7,18.086021]
[1625480566037,5.67631501,2293.5,2293.4,4.41054]
[1625480566152,5.67611264,2293.6,2293.4,46.98714]
[1625480566389,5.67611264,2293.6,2293.4,62.934189]
[1625480566640,3.8700768,2293.6,2293.4,62.934189]
[1625480566743,8.36533302,2293.7,2293.4,62.934189]
[1625480566744,8.88088306,2293.7,2293.4,62.934189]
[1625480567150,3.20527,2293.7,2293.4,62.934189]
[1625480568001,3.20527,2293.7,2293.4,22.791889]
[1625480569600,1.0,2293.7,2293.4,22.791889]
[1625480569700,3.09572717,2293.8,2293.4,22.791889]
[1625480569803,2.5771073,2293.9,2293.4,22.791889]
[1625480570003,2.5771073,2293.9,2293.8,2.20527]
[1625480570103,0.9956073,2293.9,2293.8,2.20527]
[1625480570204,3.35023949,2294.1,2293.8,2.20527]
[1625480570403,2.57660281,2294.6,2293.8,2.20527]
[1625480570504,2.57660281,2294.6,2293.8,17.968189]
[1625480570903,5.55485365,2294.9,2293.8,17.968189]
[1625480571005,2.20527,2294.9,2293.8,17.968189]
[1625480572108,2.20527,2294.9,2294.8,4.41054]
[1625480572456,2.20527,2294.9,2294.8,20.110611]
[1625480573011,3.20527,2294.9,2294.8,20.110611]
[1625480573309,3.20527,2294.9,2294.8,2.20527]
[1625480573759,3.20527,2294.9,2292.9,14.2889]
[1625480573961,5.50967,2294.9,2292.9,14.2889]
[1625480574060,2.20527,2294.2,2294.1,2.20527]
[1625480574415,2.20527,2294.2,2294.1,56.16167]
[1625480574863,1.0,2294.2,2294.1,56.16167]
[1625480574966,4.322,2294.2,2294.1,56.16167]
[1625480576467,3.322,2294.2,2294.1,56.16167]
[1625480576570,2.20527,2294.6,2294.1,56.16167]
[1625480577067,2.20527,2294.6,2294.2,15.92691]
[1625480577268,2.20527,2294.8,2294.2,15.92691]
[1625480577567,1.0,2294.7,2294.2,15.92691]
[1625480578124,1.0,2294.7,2294.6,2.20527]
[1625480581471,1.0,2294.7,2294.1,2.20527]
[1625480581571,4.3557,2294.7,2292.9,14.2889]
[1625480582122,2.20527,2294.0,2293.9,2.20527]
[1625480582527,2.20527,2294.0,2293.9,17.936141]
[1625480583677,3.20527,2294.0,2293.9,2.20527]
[1625480583783,5.68027,2294.0,2293.9,2.20527]
[1625480584180,7.88554,2294.0,2293.9,2.20527]
[1625480589304,7.88554,2294.0,2292.9,14.2889]
[1625480589953,7.88554,2294.0,2293.0,15.708845]
[1625480590053,7.88554,2294.0,2293.0,18.880545]
[1625480590153,5.68027,2294.0,2293.7,2.20527]
[1625480590559,3.20527,2294.0,2293.7,2.20527]
[1625480592159,2.20527,2293.8,2293.7,2.20527]
[1625480592408,3.20527,2294.0,2293.7,2.20527]
[1625480594218,3.20527,2294.0,2293.8,2.20527]
[1625480596276,3.20527,2294.0,2293.2,2.20527]
[1625480596377,5.36587,2294.0,2293.2,2.20527]
[1625480597729,3.20527,2294.0,2293.2,2.20527]
[1625480597829,3.20527,2294.0,2293.3,15.743822]
[1625480598482,3.20527,2294.0,2293.2,2.20527]
[1625480600290,3.20527,2294.0,2293.7,2.20527]
[1625480600389,3.20527,2294.0,2293.7,5.53717]
[1625480602248,2.20527,2293.9,2293.7,5.53717]
[1625480602349,1.0,2293.8,2293.7,5.53717]
[1625480603297,2.20527,2293.9,2293.7,5.53717]
[1625480603556,2.20527,2293.9,2293.7,3.3319]
[1625480603653,1.0,2294.1,2293.7,3.3319]
[1625480604255,1.0,2294.1,2294.0,2.20527]
[1625480606514,4.41054,2294.3,2294.0,2.20527]
[1625480606762,5.41054,2294.3,2294.0,2.20527]
[1625480610987,13.972,2295.5,2294.0,2.20527]
[1625480611087,1.0,2295.4,2294.0,2.20527]
[1625480611694,1.0,2295.4,2294.1,15.702983]
[1625480612294,2.20527,2295.1,2295.0,2.20527]
[1625480612401,3.20527,2295.1,2295.0,4.80197]
[1625480614410,5.41054,2295.1,2295.0,4.80197]
[1625480623536,5.41054,2295.1,2295.0,2.5967]
[1625480623634,5.41054,2295.1,2294.7,2.20527]
[1625480624388,2.20527,2294.8,2294.7,2.20527]
[1625480624488,3.20527,2294.8,2294.7,2.20527]
[1625480625560,2.20527,2294.8,2294.7,2.20527]
[1625480626563,3.20527,2294.8,2294.7,2.20527]
[1625480627114,2.20527,2294.8,2294.7,2.20527]
[1625480629422,3.20527,2294.8,2294.7,2.20527]
[1625480630626,0.5,2295.6,2294.7,5.65867]
[1625480630764,0.5,2295.6,2294.7,6.65867]
[1625480630837,3.32771061,2296.4,2294.7,6.65867]
[1625480630924,3.32771061,2296.4,2294.7,11.65867]
[1625480631125,3.32771061,2296.4,2294.7,6.65867]
[1625480631327,3.32771061,2296.4,2295.6,48.7485]
[1625480631426,3.32771061,2296.4,2295.7,4.3357]
[1625480631727,0.5,2296.6,2295.7,4.3357]
[1625480631830,0.5,2296.6,2295.8,15.810036]
[1625480631930,0.5,2296.6,2295.9,1.0]
[1625480632327,0.5,2296.6,2296.0,15.700177]
[1625480632426,2.70527,2296.6,2296.5,4.41054]
[1625480632530,2.70527,2296.6,2296.5,8.43014]
[1625480632827,2.70527,2296.6,2296.5,24.209087]
[1625480636938,2.70527,2296.6,2296.5,62.792787]
[1625480638793,0.5,2296.6,2296.5,62.792787]
[1625480640868,2.20527,2296.8,2296.5,62.792787]
[1625480640967,2.70527,2297.1,2296.5,62.792787]
[1625480641067,0.5,2297.1,2296.5,62.792787]
[1625480641921,0.5,2297.5,2296.5,62.792787]
[1625480642038,0.5,2298.0,2296.6,5.0]
[1625480642126,3.31374638,2299.5,2296.7,1.0]
[1625480642225,3.31374638,2299.5,2297.0,1.15]
[1625480642322,3.31374638,2299.5,2297.1,1.0]
[1625480642422,3.31374638,2299.5,2297.1,6.0]
[1625480642523,3.31374638,2299.5,2299.4,2.20527]
[1625480642627,2.20527,2299.6,2299.4,3.20527]
[1625480642722,2.20527,2299.6,2299.4,2.20527]
[1625480642922,2.20527,2299.6,2299.4,3.20527]
[1625480643023,2.20527,2299.6,2299.4,2.20527]
[1625480643326,2.20527,2299.6,2299.4,39.79217]
[1625480643524,2.20527,2299.6,2299.4,2.20527]
[1625480643627,2.20527,2299.6,2297.6,1.15]
[1625480643827,6.96427,2299.6,2297.2,14.0495]
[1625480643926,10.16887,2299.6,2297.3,1.0]
[1625480644228,5.0,2299.5,2297.3,1.0]
[1625480644428,47.5741,2298.6,2297.4,15.663988]
[1625480644528,2.20527,2297.9,2297.8,2.20527]
[1625480644628,5.30237,2297.9,2297.8,2.20527]
[1625480644830,5.30237,2297.9,2297.8,3.20527]
[1625480644929,5.30237,2297.9,2297.8,2.20527]
[1625480645032,5.30237,2297.9,2297.3,15.876571]
[1625480645231,5.30237,2297.9,2295.1,13.6826]
[1625480645633,5.30237,2297.9,2295.8,49.5296]
[1625480645933,5.30237,2297.9,2295.9,16.869724]
[1625480646535,5.30237,2297.9,2297.6,2.20527]
[1625480646935,5.30237,2297.9,2297.6,3.20527]
[1625480647136,2.20527,2297.9,2297.6,3.20527]
[1625480647588,2.20527,2297.9,2297.7,15.699685]
[1625480647687,2.20527,2297.9,2297.8,1.0]
[1625480647990,2.20527,2297.9,2297.8,16.829376]
[1625480648098,2.20527,2297.9,2297.8,19.631476]
[1625480648201,4.809,2300.0,2297.8,19.631476]
[1625480648487,2.20527,2298.9,2298.8,2.20527]
[1625480650088,2.20527,2298.9,2298.8,3.20527]
[1625480650290,4.809,2300.0,2298.8,3.20527]
[1625480650390,4.06779549,2300.5,2298.8,6.75417]
[1625480650491,6.27306549,2300.5,2300.4,4.41054]
[1625480650590,4.06779549,2300.5,2300.4,5.41054]
[1625480650689,4.06779549,2300.5,2300.4,8.47764]
[1625480650989,9.549e-05,2300.5,2300.4,7.47764]
[1625480651289,9.549e-05,2300.5,2300.4,23.279026]
[1625480652247,4.95453985,2300.8,2300.4,23.279026]
[1625480652348,4.44713985,2300.8,2300.4,24.279026]
[1625480652458,4.44713985,2300.8,2300.5,5.0]
[1625480652556,4.44713985,2300.8,2300.7,2.20527]
[1625480652651,3.24333985,2300.8,2300.7,7.20527]
[1625480652760,3.985e-05,2300.8,2300.7,7.20527]
[1625480652947,5.52651654,2301.2,2300.7,23.104257]
[1625480653046,5.52651654,2301.2,2300.8,1.0]
[1625480653206,5.31571654,2301.2,2300.8,1.0]
[1625480653414,5.31571654,2301.2,2300.9,15.826598]
[1625480653503,5.31571654,2301.2,2300.9,20.826598]
[1625480653702,5.31571654,2301.2,2300.9,21.826598]
[1625480654095,4.15571654,2301.2,2300.9,21.826598]
[1625480654602,2.99571654,2301.2,2301.1,2.20527]
[1625480654701,2.99571654,2301.2,2301.1,7.20527]
[1625480654798,1.83571654,2301.2,2301.1,7.20527]
[1625480654900,0.67571654,2301.2,2301.1,7.20527]
[1625480655032,0.67571654,2301.2,2301.1,18.09995]
[1625480655200,10.16948872,2301.7,2301.1,18.09995]
[1625480655201,10.11948872,2301.7,2301.6,1.15]
[1625480655333,10.11948872,2301.7,2301.1,0.83645]
[1625480655603,10.11948872,2301.7,2300.7,2.20527]
[1625480655604,10.11948872,2301.7,2301.6,15.663163]
[1625480656007,10.11948872,2301.7,2301.2,15.741139]
[1625480656308,10.11948872,2301.7,2300.8,15.902038]
[1625480656410,13.48818872,2301.7,2300.7,2.20527]
[1625480656558,4.41054,2300.8,2300.7,2.20527]
[1625480656656,7.49224,2300.8,2296.1,3.1043217]
[1625480657068,7.49224,2300.8,2295.6,3.10864904]
[1625480657156,7.49224,2300.8,2297.9,5.0]
[1625480657256,7.49224,2300.8,2298.1,15.766333]
[1625480657363,7.49224,2300.8,2298.1,20.766333]
[1625480657667,7.49224,2300.8,2298.2,1.0]
[1625480657966,3.0817,2300.8,2298.3,15.812815]
[1625480658066,13.48818872,2301.7,2298.3,15.812815]
[1625480658067,13.48818872,2301.7,2298.4,6.0]
[1625480658370,13.48818872,2301.7,2298.5,15.746331]
[1625480658469,13.48818872,2301.7,2298.6,6.0]
[1625480658568,2.20527,2301.0,2300.9,2.20527]
[1625480658972,2.20527,2301.0,2300.9,17.987917]
[1625480660727,2.672,2301.1,2300.9,17.987917]
[1625480660830,10.11948872,2301.7,2300.9,17.987917]
[1625480660927,10.11948872,2301.7,2301.0,1.0]
[1625480661229,10.11948872,2301.7,2301.1,15.772344]
[1625480662031,10.11948872,2301.7,2301.2,1.0]
[1625480662132,10.11948872,2301.7,2301.1,15.772344]
[1625480662382,10.11948872,2301.7,2301.3,15.854647]
[1625480662581,10.11948872,2301.7,2301.6,4.41054]
[1625480662984,10.11948872,2301.7,2301.6,20.09158]
[1625480664337,10.11948872,2301.7,2301.6,4.41054]
[1625480664661,12.32475872,2301.7,2301.6,4.41054]
[1625480664743,12.32475872,2301.7,2301.6,12.719549]
[1625480664939,12.32475872,2301.7,2300.2,1.0]
[1625480665692,12.32475872,2301.7,2300.3,15.900736]
[1625480665789,12.32475872,2301.7,2300.4,1.0]
[1625480666090,12.32475872,2301.7,2300.5,15.902094]
[1625480666192,0.22093328,2301.6,2300.5,15.902094]
[1625480666391,0.22093328,2301.6,2300.0,47.2552]
[1625480666592,2.20527,2300.6,2300.5,2.20527]
[1625480666692,4.65777,2300.6,2300.5,2.20527]
[1625480666944,4.65777,2300.6,2300.5,17.867931]
[1625480667044,2.4525,2300.6,2300.5,15.662661]
[1625480667444,2.4525,2300.6,2299.5,16.814462]
[1625480667596,2.4525,2300.6,2299.6,15.7053]
[1625480668094,2.4525,2300.6,2299.5,15.662132]
[1625480668495,2.4525,2300.6,2299.7,15.896495]
[1625480668596,2.20527,2300.0,2299.7,18.101765]
[1625480668696,5.74927,2300.0,2299.7,2.20527]
[1625480668997,5.74927,2300.0,2299.8,15.903935]
[1625480670658,5.74927,2300.0,2299.9,2.20527]
[1625480670759,5.74927,2300.0,2299.8,15.903935]
[1625480670962,5.74927,2300.0,2299.7,41.6374]
[1625480670963,5.74927,2300.0,2299.9,16.816063]
[1625480671059,2.20527,2300.0,2299.9,15.816063]
[1625480671268,2.20527,2300.0,2299.8,15.863073]
[1625480671469,2.20527,2300.0,2299.9,1.0]
[1625480671568,2.20527,2300.0,2299.9,16.90197]
[1625480671669,2.20527,2300.2,2299.9,16.90197]
[1625480671875,2.20527,2300.2,2299.9,1.0]
[1625480672177,2.20527,2300.2,2300.0,15.764653]
[1625480672426,2.20527,2300.2,2299.6,1.0]
[1625480672527,5.66947,2300.2,2299.6,1.0]
[1625480672627,5.66947,2300.2,2299.9,2.20527]
[1625480673129,5.66947,2300.2,2300.0,15.738474]
[1625480674682,5.66947,2300.2,2300.0,17.943744]
[1625480674783,5.66947,2300.2,2300.1,1.0]
[1625480675087,5.66947,2300.2,2300.1,16.673723]
[1625480675187,5.66947,2300.2,2300.1,15.673723]
[1625480679000,5.66947,2300.2,2300.1,16.673723]
[1625480679813,2.20527,2300.2,2300.1,16.673723]
[1625480680405,2.20527,2300.2,2300.1,15.673723]
[1625480680503,3.0763,2300.9,2300.1,16.673723]
[1625480680603,3.41,2301.4,2300.1,16.673723]
[1625480680704,2.20527,2300.8,2300.7,2.20527]
[1625480681358,2.20527,2300.8,2300.7,18.045095]
[1625480682558,2.20527,2300.8,2300.7,10.559295]
[1625480682667,2.20527,2300.8,2300.7,3.333695]
[1625480682770,7.75864,2300.8,2299.4,14.211]
[1625480683261,54.67944,2300.8,2299.4,14.211]
[1625480683774,54.67944,2300.8,2299.5,1.0]
[1625480683863,7.75864,2300.8,2299.4,14.211]
[1625480683962,7.75864,2300.8,2299.5,15.678407]
[1625480684780,2.20527,2299.9,2299.8,2.20527]
[1625480685083,2.20527,2299.9,2299.6,1.0]
[1625480685282,2.20527,2299.9,2299.8,15.68708]
[1625480685582,2.20527,2299.9,2299.7,15.720937]
[1625480685783,2.20527,2299.9,2299.4,14.211]
[1625480686035,2.20527,2299.9,2299.5,15.829057]
[1625480686432,2.20527,2299.9,2299.6,1.0]
[1625480686735,2.20527,2299.7,2299.6,1.0]
[1625480686935,2.20527,2299.7,2299.4,14.211]
[1625480687032,2.20527,2299.7,2299.6,15.807519]
[1625480687333,2.20527,2299.7,2299.5,16.670675]
[1625480687434,5.45957,2299.7,2299.5,16.670675]
[1625480687637,5.45957,2299.7,2299.6,15.724417]
[1625480688385,5.45957,2299.7,2299.4,14.211]
[1625480688786,2.20527,2299.5,2299.4,14.211]
[1625480689135,2.20527,2299.5,2299.4,30.091569]
[1625480690137,2.20527,2299.5,2299.4,14.211]
[1625480691390,2.20527,2299.5,2299.4,30.074889]
[1625480692543,2.20527,2299.5,2299.4,14.211]
[1625480693194,2.20527,2299.5,2299.4,29.936685]
[1625480695752,2.20527,2299.5,2299.4,14.211]
[1625480697604,2.20527,2299.5,2299.4,14.401]
[1625480698468,2.20527,2299.5,2299.4,30.124604]
[1625480699054,2.20527,2299.5,2299.4,14.401]
[1625480699455,2.20527,2299.5,2299.4,30.210884]
[1625480699887,2.20527,2299.5,2299.4,33.815784]
[1625480699972,2.20527,2299.7,2299.4,33.815784]
[1625480700761,2.20527,2299.7,2299.6,2.20527]
[1625480701163,2.20527,2299.7,2299.6,18.080384]
[1625480703169,2.20527,2299.7,2299.6,15.875114]
[1625480705635,2.20527,2299.7,2299.5,15.908128]
[1625480705986,2.20527,2299.7,2299.4,16.60627]
[1625480705987,2.20527,2299.7,2299.6,15.821451]
[1625480706286,2.20527,2299.7,2299.5,15.750262]
[1625480706684,5.76477,2299.7,2299.5,15.750262]
[1625480709595,2.20527,2299.7,2299.5,16.750262]
[1625480710797,2.20527,2299.7,2299.5,18.955532]
[1625480712200,2.20527,2299.7,2299.5,21.138932]
[1625480715860,2.20527,2299.7,2299.5,18.955532]
[1625480716362,2.20527,2299.7,2299.5,22.245332]
[1625480716461,14.6584,2301.9,2299.5,22.245332]
[1625480716861,2.20527,2300.5,2300.4,2.20527]
[1625480716963,2.20527,2300.5,2300.4,3.20527]
[1625480717163,2.20527,2300.5,2300.4,2.20527]
[1625480717262,2.20527,2300.5,2300.4,18.025771]
[1625480718764,2.20527,2300.5,2300.4,19.025771]
[1625480718863,4.41054,2300.5,2300.4,19.025771]
[1625480721368,56.076,2302.7,2300.4,19.025771]
[1625480721471,56.076,2302.7,2300.4,21.763171]
[1625480722871,2.20527,2301.1,2301.0,2.20527]
[1625480723071,2.20527,2301.1,2301.0,3.20527]
[1625480723272,2.4245,2302.6,2301.0,3.20527]
[1625480724385,42.5233,2302.7,2301.0,3.20527]
[1625480724936,2.20527,2301.7,2301.6,2.20527]
[1625480726889,4.41054,2301.7,2301.6,2.20527]
[1625480729198,4.41054,2301.7,2301.6,3.20527]
[1625480729649,4.41054,2301.7,2301.6,2.20527]
[1625480733910,4.41054,2301.7,2301.1,1.0]
[1625480734111,4.41054,2301.7,2300.7,1.0]
[1625480734464,4.41054,2301.7,2300.6,14.7459]
[1625480734663,9.41054,2301.7,2300.6,14.7459]
[1625480734864,4.41054,2301.7,2300.6,14.7459]
[1625480734964,4.41054,2300.7,2300.6,14.7459]
[1625480735063,6.72674,2300.7,2300.6,14.7459]
[1625480735563,6.72674,2300.7,2300.6,15.7459]
[1625480735664,6.72674,2300.7,2300.6,14.7459]
[1625480739719,6.72674,2300.7,2300.6,0.0001]
[1625480739820,6.72674,2300.7,2300.2,2.20527]
[1625480740520,6.72674,2300.7,2299.9,1.0]
[1625480741021,4.41054,2300.0,2299.9,1.0]
[1625480743095,7.90034,2300.0,2298.4,2.43764861]
[1625480743395,7.90034,2300.0,2298.3,14.9497]
[1625480743798,7.90034,2300.0,2298.4,15.678037]
[1625480745099,2.20527,2299.4,2299.3,2.20527]
[1625480745400,2.20527,2299.4,2299.3,18.087428]
[1625480745701,2.20527,2299.4,2299.3,2.20527]
[1625480746454,3.20527,2299.4,2299.3,2.20527]
[1625480746655,2.20527,2299.4,2299.3,2.20527]
[1625480747005,4.41054,2299.4,2299.3,2.20527]
[1625480747454,5.41054,2299.4,2299.3,2.20527]
[1625480747558,8.68414,2299.4,2299.3,2.20527]
[1625480748106,7.68414,2299.4,2299.3,2.20527]
[1625480750263,8.68414,2299.4,2299.3,2.20527]
[1625480750462,7.68414,2299.4,2299.3,2.20527]
[1625480751313,8.68414,2299.4,2299.3,2.20527]
[1625480754666,7.68414,2299.4,2299.3,2.20527]
[1625480754770,8.68414,2299.4,2299.3,2.20527]
[1625480757587,8.68414,2299.4,2299.1,2.20527]
[1625480758180,8.68414,2299.4,2298.3,14.9497]
[1625480758580,7.68414,2299.4,2298.3,14.9497]
[1625480758694,4.41054,2299.4,2298.3,14.9497]
[1625480758892,4.41054,2299.4,2298.4,15.677867]
[1625480758991,4.41054,2299.4,2298.4,18.752967]
[1625480759244,4.41054,2299.4,2299.3,2.39527]
[1625480759343,4.41054,2299.4,2299.3,4.54107]
[1625480759543,4.41054,2299.4,2299.3,20.205]
[1625480764914,3.6127,2300.1,2299.3,20.205]
[1625480765213,5.81797,2300.1,2300.0,2.20527]
[1625480765314,3.20527,2300.1,2300.0,2.20527]
[1625480765513,2.20527,2300.1,2300.0,2.20527]
[1625480765815,2.20527,2300.1,2300.0,4.67797]
[1625480766918,3.20527,2300.1,2300.0,4.67797]
[1625480767119,3.20527,2300.1,2300.0,2.20527]
[1625480767220,5.41054,2300.1,2300.0,2.20527]
[1625480767570,5.41054,2300.1,2299.3,2.39527]
[1625480767669,8.29014,2300.1,2299.3,2.39527]
[1625480769222,6.08487,2300.1,2299.6,2.20527]
[1625480771127,6.08487,2300.1,2299.3,2.39527]
[1625480771226,4.41054,2299.4,2299.3,0.19]
[1625480771328,8.46454,2299.4,2299.3,0.19]
[1625480777199,8.46454,2299.4,2299.3,0.0001]
[1625480780067,5.41054,2299.4,2299.3,0.0001]
[1625480780757,8.75584,2299.4,2299.3,0.0001]
[1625480789375,5.41054,2299.4,2299.3,0.0001]
[1625480793083,4.41054,2299.4,2299.3,0.0001]
[1625480793180,5.41054,2299.4,2299.3,0.0001]
[1625480800753,1.0,2299.4,2299.3,0.0001]